[Event "AUT-ch 2018"]
[Site "Vienna"]
[Date "2018.07.25"]
[Round "5"]
[White "Frank, Emanuel"]
[Black "Schmidlechner, Alexander"]
[Result "1/2-1/2"]
[ECO "D30"]
[WhiteElo "2161"]
[BlackElo "2226"]
[Annotator "NA"]
[PlyCount "83"]
[EventDate "2018.07.22"]
[EventType "swiss"]
[EventCountry "AUT"]
[SourceTitle "playchess.com"]
[Source "ChessBase"]
[SourceQuality "1"]
[TimeControl "40/5400+30:1800+30"]

1. d4 {[%emt 0:00:00]} d5 {[%emt 0:00:00]} 2. c4 {[%emt 0:00:00]} e6 {[%emt 0:00:00]} 3. Nf3 {[%emt 0:00:00]} Nf6 {[%emt 0:00:01]} 4. g3 {[%emt 0:00:00]} Bb4+ {[%emt 0:00:14]} 5. Bd2 {[%emt 0:00:03]} Be7 {[%emt 0:00:15]} 6. Bg2 {[%emt 0:00:18]} O-O {[%emt 0:00:18]} 7. O-O {[%emt 0:00:23]} c6 {[%emt 0:00:35]} 8. Qc2 {[%emt 0:00:37]} Nbd7 {[%emt 0:00:25]} 9. b3 {[%emt 0:02:35]} b6 {[%emt 0:00:44]} 10. Rd1 {[%emt 0:02:03]} Ba6 {[%emt 0:03:10]} 11. a4 {[%emt 0:03:54]} Qc8 {[%emt 0:20:10]} 12. a5 {[%emt 0:05:29]} c5 {[%emt 0:05:06]} 13. axb6 {[%emt 0:19:57]} axb6 {[%emt 0:01:52]} 14. Na3 {[%emt 0:04:00]} cxd4 {[%emt 0:21:57]} 15. Nxd4 {[%emt 0:03:42]} Bb7 {[%emt 0:09:44]} 16. Nab5 {[%emt 0:13:03]} dxc4 {[%emt 0:01:38]} 17. Na7 {[%emt 0:04:43]} Qc7 {[%emt 0:07:38]} 18. Nac6 {[%emt 0:10:21]} Bc5 {[%emt 0:01:27]} 19. Qxc4 {[%emt 0:04:28]} Rxa1 {[%emt 0:01:26]} 20. Rxa1 {[%emt 0:00:11]} Qd6 {[%emt 0:05:37]} 21. Bf4 {[%emt 0:09:00]} e5 {[%emt 0:01:00]} 22. Nb5 {[%emt 0:00:18]} Qe6 {[%emt 0:00:49]} 23. Qxe6 {[%emt 0:01:45]} fxe6 {[%emt 0:00:03]} 24. Nxe5 {[%emt 0:01:03]} Bxg2 {[%emt 0:00:32]} 25. Nxd7 {[%emt 0:00:45]} Nxd7 {[%emt 0:00:35]} 26. Kxg2 {[%emt 0:00:13]} e5 {[%emt 0:01:10]} 27. Be3 {[%emt 0:00:30]} Bxe3 {[%emt 0:00:12]} 28. fxe3 {[%emt 0:00:01]} Nc5 {[%emt 0:02:28]} 29. b4 {[%emt 0:00:56]} Ne4 {[%emt 0:00:19]} 30. Kg1 {[%emt 0:02:22]} h5 {[%emt 0:02:12]} 31. Rc1 {[%emt 0:02:39]} Ra8 {[%emt 0:01:20]} 32. Rc4 {[%emt 0:02:20]} Ra1+ {[%emt 0:00:27]} 33. Kg2 {[%emt 0:00:13]} Nf6 {[%emt 0:00:08]} 34. Nc7 {[%emt 0:03:08]} Rb1 {[%emt 0:00:45]} 35. h3 {[%emt 0:02:29]} Re1 {[%emt 0:01:26]} 36. Kf2 {[%emt 0:00:35]} Rh1 {[%emt 0:00:16]} 37. Kg2 {[%emt 0:00:00]} Re1 {[%emt 0:00:08]} 38. Kf2 {[%emt 0:00:03]} Rh1 {[%emt 0:00:06]} 39. Ne6 {[%emt 0:03:48]} Rb1 {[%emt 0:03:41]} 40. Nc7 {[%emt 0:01:22]} Kf7 {[%emt 0:04:34]} 41. e4 {[%emt 0:06:36]} Rb3 {[%emt 0:06:05]} 42. b5 {[%emt 0:18:22]} 1/2-1/2

[Event "AUT-ch 2018"]
[Site "Vienna"]
[Date "2018.07.25"]
[Round "5"]
[White "Hofegger, Jakob"]
[Black "Riemelmoser, Stefan"]
[Result "0-1"]
[ECO "A06"]
[WhiteElo "2147"]
[BlackElo "2147"]
[Annotator "NA"]
[PlyCount "112"]
[EventDate "2018.07.22"]
[EventType "swiss"]
[EventCountry "AUT"]
[SourceTitle "playchess.com"]
[Source "ChessBase"]
[SourceQuality "1"]
[TimeControl "40/5400+30:1800+30"]

1. Nf3 {[%emt 0:00:00]} d5 {[%emt 0:00:00]} 2. g3 {[%emt 0:00:00]} Nf6 {[%emt 0:00:00]} 3. Bg2 {[%emt 0:00:00]} e6 {[%emt 0:00:00]} 4. O-O {[%emt 0:00:00]} Be7 {[%emt 0:00:15]} 5. d3 {[%emt 0:00:06]} c5 {[%emt 0:00:23]} 6. Nbd2 {[%emt 0:00:06]} Nc6 {[%emt 0:00:08]} 7. e4 {[%emt 0:00:09]} Qc7 {[%emt 0:00:47]} 8. Re1 {[%emt 0:00:20]} b6 {[%emt 0:00:12]} 9. Qe2 {[%emt 0:00:43]} Bb7 {[%emt 0:00:23]} 10. e5 {[%emt 0:03:12]} Nd7 {[%emt 0:00:18]} 11. Nf1 {[%emt 0:00:08]} h6 {[%emt 0:04:54]} 12. h4 {[%emt 0:00:48]} O-O-O {[%emt 0:01:33]} 13. h5 {[%emt 0:01:10]} Rdg8 {[%emt 0:05:19]} 14. N1h2 {[%emt 0:07:40]} g6 {[%emt 0:04:56]} 15. hxg6 {[%emt 0:01:26]} fxg6 {[%emt 0:15:48]} 16. c3 {[%emt 0:08:56]} g5 {[%emt 0:06:44]} 17. g4 {[%emt 0:04:27]} Nf8 {[%emt 0:09:53]} 18. a3 {[%emt 0:05:18]} Ng6 {[%emt 0:03:50]} 19. b4 {[%emt 0:01:24]} h5 {[%emt 0:15:50]} 20. bxc5 {[%emt 0:06:07]} hxg4 {[%emt 0:00:27]} 21. Nxg4 {[%emt 0:00:22]} Bxc5 {[%emt 0:06:25]} 22. Nf6 {[%emt 0:13:26]} g4 {[%emt 0:02:35]} 23. Ng5 {[%emt 0:08:14]} g3 {[%emt 0:03:17]} 24. d4 {[%emt 0:02:47]} Nxd4 {[%emt 0:01:56]} 25. cxd4 {[%emt 0:00:14]} Bxd4 {[%emt 0:00:09]} 26. Be3 {[%emt 0:03:03]} Nf4 {[%emt 0:07:48]} 27. Bxf4 {[%emt 0:01:51]} gxf2+ {[%emt 0:00:43]} 28. Kf1 {[%emt 0:01:59]} fxe1=Q+ {[%emt 0:00:42]} 29. Rxe1 {[%emt 0:00:22]} Rxg5 {[%emt 0:05:30]} 30. Bxg5 {[%emt 0:01:41]} Kb8 {[%emt 0:01:47]} 31. Rd1 {[%emt 0:18:04]} Qc3 {[%emt 0:00:41]} 32. Bf4 {[%emt 0:03:57]} Rh4 {[%emt 0:00:33]} 33. Rxd4 {[%emt 0:03:31]} Qxd4 {[%emt 0:00:08]} 34. Be3 {[%emt 0:01:37]} Qa1+ {[%emt 0:00:59]} 35. Qe1 {[%emt 0:02:23]} Ba6+ {[%emt 0:00:14]} 36. Kf2 {[%emt 0:00:20]} Qxa3 {[%emt 0:01:04]} 37. Qd2 {[%emt 0:01:11]} Qb4 {[%emt 0:01:17]} 38. Qc2 {[%emt 0:01:15]} Qc4 {[%emt 0:00:22]} 39. Qd2 {[%emt 0:00:38]} Rh2 {[%emt 0:00:59]} 40. Kg1 {[%emt 0:00:28]} Rh4 {[%emt 0:00:31]} 41. Bf2 {[%emt 0:11:07]} Rh8 {[%emt 0:03:00]} 42. Qb2 {[%emt 0:04:13]} Bb5 {[%emt 0:08:52]} 43. Qd2 {[%emt 0:06:20]} Qd3 {[%emt 0:04:44]} 44. Qc1 {[%emt 0:03:26]} Kb7 {[%emt 0:02:59]} 45. Ng4 {[%emt 0:02:56]} a5 {[%emt 0:01:03]} 46. Nh6 {[%emt 0:00:53]} Rf8 {[%emt 0:07:10]} 47. Ng4 {[%emt 0:02:12]} Rh8 {[%emt 0:01:58]} 48. Nh6 {[%emt 0:00:06]} Rf8 {[%emt 0:03:14]} 49. Ng4 {[%emt 0:00:03]} Rg8 {[%emt 0:00:29]} 50. Ne3 {[%emt 0:02:23]} a4 {[%emt 0:00:22]} 51. Qd1 {[%emt 0:01:54]} a3 {[%emt 0:00:45]} 52. Qxd3 {[%emt 0:00:25]} Bxd3 {[%emt 0:00:10]} 53. Be1 {[%emt 0:00:24]} Be4 {[%emt 0:00:37]} 54. Bc3 {[%emt 0:00:32]} a2 {[%emt 0:00:26]} 55. Kf2 {[%emt 0:00:10]} Bxg2 {[%emt 0:00:11]} 56. Nxg2 {[%emt 0:00:01]} Rc8 {[%emt 0:00:25]} 0-1

[Event "AUT-ch 2018"]
[Site "Vienna"]
[Date "2018.07.25"]
[Round "5"]
[White "Miazhynski, Yuri"]
[Black "Ebner, Johann"]
[Result "1-0"]
[ECO "A15"]
[WhiteElo "2147"]
[BlackElo "2147"]
[Annotator "NA"]
[PlyCount "53"]
[EventDate "2018.07.22"]
[EventType "swiss"]
[EventCountry "AUT"]
[SourceTitle "playchess.com"]
[Source "ChessBase"]
[SourceQuality "1"]
[TimeControl "40/5400+30:1800+30"]

1. c4 {[%emt 0:00:00]} Nf6 {[%emt 0:00:36]} 2. Nf3 {[%emt 0:00:10]} e6 {[%emt 0:00:59]} 3. g3 {[%emt 0:02:57]} b6 {[%emt 0:00:27]} 4. Bg2 {[%emt 0:00:16]} Bb7 {[%emt 0:00:03]} 5. O-O {[%emt 0:00:34]} Be7 {[%emt 0:00:08]} 6. b3 {[%emt 0:01:48]} O-O {[%emt 0:06:26]} 7. Bb2 {[%emt 0:00:18]} c5 {[%emt 0:01:05]} 8. Nc3 {[%emt 0:01:32]} Ne4 {[%emt 0:03:06]} 9. Nxe4 {[%emt 0:08:01]} Bxe4 {[%emt 0:01:23]} 10. d3 {[%emt 0:00:03]} Bb7 {[%emt 0:00:19]} 11. e4 {[%emt 0:00:41]} d6 {[%emt 0:01:54]} 12. Qe2 {[%emt 0:14:44]} Nc6 {[%emt 0:12:56]} 13. d4 {[%emt 0:02:43]} cxd4 {[%emt 0:28:49]} 14. Nxd4 {[%emt 0:00:40]} Nxd4 {[%emt 0:01:24]} 15. Bxd4 {[%emt 0:00:09]} Qc7 {[%emt 0:05:35]} 16. Qg4 {[%emt 0:18:25]} g6 {[%emt 0:05:18]} 17. Qe2 {[%emt 0:06:09]} e5 {[%emt 0:08:52]} 18. Bb2 {[%emt 0:05:01]} f5 {[%emt 0:01:45]} 19. exf5 {[%emt 0:07:04]} Bxg2 {[%emt 0:00:19]} 20. Kxg2 {[%emt 0:00:05]} gxf5 {[%emt 0:02:39]} 21. Rad1 {[%emt 0:02:26]} f4 {[%emt 0:03:48]} 22. Qg4+ {[%emt 0:01:50]} Kf7 {[%emt 0:01:15]} 23. Rd5 {[%emt 0:06:29]} Ke8 {[%emt 0:02:09]} 24. Qh5+ {[%emt 0:02:45]} Rf7 {[%emt 0:03:59]} 25. Rfd1 {[%emt 0:01:12]} f3+ {[%emt 0:01:04]} 26. Kg1 {[%emt 0:00:51]} a6 {[%emt 0:01:07]} 27. R1d3 {[%emt 0:01:47]} 1-0

[Event "AUT-ch 2018"]
[Site "Vienna"]
[Date "2018.07.25"]
[Round "5"]
[White "Atzl, Florian"]
[Black "Opietnik, Christoph"]
[Result "1-0"]
[ECO "A06"]
[WhiteElo "2117"]
[BlackElo "1983"]
[Annotator "NA"]
[PlyCount "53"]
[EventDate "2018.07.22"]
[EventType "swiss"]
[EventCountry "AUT"]
[SourceTitle "playchess.com"]
[Source "ChessBase"]
[SourceQuality "1"]
[TimeControl "40/5400+30:1800+30"]

1. Nf3 {[%emt 0:00:00]} d5 {[%emt 0:00:00]} 2. g3 {[%emt 0:00:07]} Nf6 {[%emt 0:00:09]} 3. Bg2 {[%emt 0:00:04]} e6 {[%emt 0:01:10]} 4. O-O {[%emt 0:00:14]} c5 {[%emt 0:01:09]} 5. d4 {[%emt 0:00:12]} Nc6 {[%emt 0:00:47]} 6. c4 {[%emt 0:00:36]} dxc4 {[%emt 0:03:29]} 7. dxc5 {[%emt 0:00:31]} Bxc5 {[%emt 0:05:02]} 8. Qxd8+ {[%emt 0:00:20]} Kxd8 {[%emt 0:01:21]} 9. Nbd2 {[%emt 0:00:40]} Ke7 {[%emt 0:02:38]} 10. Nxc4 {[%emt 0:00:40]} Bd7 {[%emt 0:03:56]} 11. Nfe5 {[%emt 0:05:55]} Rhd8 {[%emt 0:04:36]} 12. Nd3 {[%emt 0:02:15]} Bb6 {[%emt 0:09:03]} 13. Nxb6 {[%emt 0:00:13]} axb6 {[%emt 0:02:37]} 14. Be3 {[%emt 0:00:17]} Ra6 {[%emt 0:01:30]} 15. b4 {[%emt 0:00:12]} b5 {[%emt 0:04:02]} 16. Nc5 {[%emt 0:00:23]} Nxb4 {[%emt 0:06:38]} 17. Nxa6 {[%emt 0:00:28]} Nxa6 {[%emt 0:00:06]} 18. Bxb7 {[%emt 0:00:21]} Nc7 {[%emt 0:05:31]} 19. Rfd1 {[%emt 0:00:55]} Ncd5 {[%emt 0:00:48]} 20. Bc5+ {[%emt 0:00:13]} Ke8 {[%emt 0:00:06]} 21. Rac1 {[%emt 0:03:31]} Rb8 {[%emt 0:02:28]} 22. Bxd5 {[%emt 0:00:11]} Nxd5 {[%emt 0:00:18]} 23. e4 {[%emt 0:00:12]} Nf6 {[%emt 0:02:09]} 24. f3 {[%emt 0:00:05]} Ra8 {[%emt 0:01:07]} 25. Bd4 {[%emt 0:00:25]} Ng8 {[%emt 0:01:48]} 26. Rc7 {[%emt 0:00:12]} f6 {[%emt 0:03:12]} 27. Bb6 {[%emt 0:00:22]} 1-0

[Event "AUT-ch 2018"]
[Site "Vienna"]
[Date "2018.07.25"]
[Round "5"]
[White "Charaus, Florian"]
[Black "Exler, Veronika"]
[Result "0-1"]
[ECO "B13"]
[WhiteElo "2115"]
[BlackElo "2198"]
[Annotator "NA"]
[PlyCount "36"]
[EventDate "2018.07.22"]
[EventType "swiss"]
[EventCountry "AUT"]
[SourceTitle "playchess.com"]
[Source "ChessBase"]
[SourceQuality "1"]
[TimeControl "40/5400+30:1800+30"]

1. e4 {[%emt 0:00:00]} c6 {[%emt 0:00:00]} 2. d4 {[%emt 0:00:00]} d5 {[%emt 0:00:00]} 3. exd5 {[%emt 0:00:00]} cxd5 {[%emt 0:00:00]} 4. Bd3 {[%emt 0:00:00]} Nc6 {[%emt 0:00:00]} 5. c3 {[%emt 0:00:03]} Qc7 {[%emt 0:00:00]} 6. Ne2 {[%emt 0:01:40]} Bg4 {[%emt 0:00:09]} 7. O-O {[%emt 0:00:06]} Nf6 {[%emt 0:03:11]} 8. Qe1 {[%emt 0:01:11]} e6 {[%emt 0:09:20]} 9. Bg5 {[%emt 0:03:23]} Bxe2 {[%emt 0:04:44]} 10. Qxe2 {[%emt 0:01:28]} Bd6 {[%emt 0:00:06]} 11. h3 {[%emt 0:03:18]} Bf4 {[%emt 0:13:38]} 12. Bxf4 {[%emt 0:06:25]} Qxf4 {[%emt 0:00:11]} 13. Nd2 {[%emt 0:00:26]} O-O {[%emt 0:00:18]} 14. g3 {[%emt 0:03:24]} Qc7 {[%emt 0:00:56]} 15. Rae1 {[%emt 0:09:13]} Qb6 {[%emt 0:03:15]} 16. Nf3 {[%emt 0:01:01]} Rfc8 {[%emt 0:00:23]} 17. Ng5 {[%emt 0:03:27]} Na5 {[%emt 0:11:18]} 18. Bxh7+ {[%emt 0:01:50]} Nxh7 {[%emt 0:03:53]} 0-1

[Event "AUT-ch 2018"]
[Site "Vienna"]
[Date "2018.07.25"]
[Round "5"]
[White "Högl, Emanuel"]
[Black "Zojer, Stefan"]
[Result "1/2-1/2"]
[ECO "D30"]
[WhiteElo "2108"]
[BlackElo "2108"]
[Annotator "NA"]
[PlyCount "85"]
[EventDate "2018.07.22"]
[EventType "swiss"]
[EventCountry "AUT"]
[SourceTitle "playchess.com"]
[Source "ChessBase"]
[SourceQuality "1"]
[TimeControl "40/5400+30:1800+30"]

1. d4 {[%emt 0:00:00]} d5 {[%emt 0:00:00]} 2. c4 {[%emt 0:00:00]} c6 {[%emt 0:00:00]} 3. Nf3 {[%emt 0:00:30]} Nf6 {[%emt 0:00:00]} 4. Nbd2 {[%emt 0:00:04]} e6 {[%emt 0:01:56]} 5. e3 {[%emt 0:00:05]} Nbd7 {[%emt 0:00:26]} 6. b3 {[%emt 0:00:05]} Be7 {[%emt 0:02:20]} 7. Bd3 {[%emt 0:00:11]} O-O {[%emt 0:00:18]} 8. Bb2 {[%emt 0:00:11]} b6 {[%emt 0:02:33]} 9. O-O {[%emt 0:00:07]} Bb7 {[%emt 0:01:30]} 10. Ne5 {[%emt 0:01:02]} dxc4 {[%emt 0:08:51]} 11. Ndxc4 {[%emt 0:06:37]} b5 {[%emt 0:07:01]} 12. Nxd7 {[%emt 0:04:33]} Nxd7 {[%emt 0:02:59]} 13. Nd2 {[%emt 0:01:45]} a6 {[%emt 0:04:09]} 14. Qc2 {[%emt 0:09:06]} h6 {[%emt 0:06:34]} 15. Ne4 {[%emt 0:02:16]} Rc8 {[%emt 0:07:08]} 16. Nc5 {[%emt 0:35:23]} Nxc5 {[%emt 0:03:47]} 17. dxc5 {[%emt 0:00:09]} Bxc5 {[%emt 0:02:02]} 18. Qc3 {[%emt 0:04:04]} f6 {[%emt 0:03:24]} 19. Qxc5 {[%emt 0:00:24]} Qxd3 {[%emt 0:03:05]} 20. Qe7 {[%emt 0:00:37]} Rf7 {[%emt 0:07:15]} 21. Qxe6 {[%emt 0:00:24]} c5 {[%emt 0:02:46]} 22. Rad1 {[%emt 0:06:03]} Qe4 {[%emt 0:01:58]} 23. Qxe4 {[%emt 0:00:52]} Bxe4 {[%emt 0:00:06]} 24. Rd6 {[%emt 0:05:48]} Ra7 {[%emt 0:03:24]} 25. f3 {[%emt 0:02:04]} Bg6 {[%emt 0:01:27]} 26. e4 Bf7 {[%emt 0:00:39]} 27. Kf2 {[%emt 0:05:55]} a5 {[%emt 0:04:14]} 28. Rc1 {[%emt 0:03:48]} Rcc7 {[%emt 0:01:51]} 29. e5 {[%emt 0:05:11]} a4 {[%emt 0:03:33]} 30. exf6 {[%emt 0:03:22]} axb3 {[%emt 0:01:37]} 31. a3 {[%emt 0:02:39]} gxf6 {[%emt 0:01:46]} 32. Kg3 {[%emt 0:00:50]} Rd7 {[%emt 0:02:33]} 33. Rxd7 {[%emt 0:01:47]} Rxd7 {[%emt 0:00:07]} 34. Rxc5 {[%emt 0:00:13]} Rd2 {[%emt 0:00:28]} 35. Bxf6 {[%emt 0:00:12]} Bc4 {[%emt 0:01:15]} 36. a4 {[%emt 0:01:05]} b2 {[%emt 0:05:34]} 37. Bxb2 {[%emt 0:00:04]} Rxb2 {[%emt 0:00:09]} 38. axb5 {[%emt 0:00:04]} Bf1 {[%emt 0:01:54]} 39. Rc1 {[%emt 0:00:56]} Rxg2+ {[%emt 0:01:24]} 40. Kh3 {[%emt 0:00:31]} Rf2+ {[%emt 0:01:47]} 41. Kg3 {[%emt 0:01:08]} Rg2+ {[%emt 0:01:24]} 42. Kh3 {[%emt 0:00:10]} Rf2+ {[%emt 0:00:17]} 43. Kg3 {[%emt 0:00:05]} 1/2-1/2

[Event "AUT-ch 2018"]
[Site "Vienna"]
[Date "2018.07.25"]
[Round "5"]
[White "Wagner, Leopold Franziskus"]
[Black "Konecny, Sophie"]
[Result "1-0"]
[ECO "C68"]
[WhiteElo "2108"]
[BlackElo "1889"]
[Annotator "NA"]
[PlyCount "43"]
[EventDate "2018.07.22"]
[EventType "swiss"]
[EventCountry "AUT"]
[SourceTitle "playchess.com"]
[Source "ChessBase"]
[SourceQuality "1"]
[TimeControl "40/5400+30:1800+30"]

1. e4 {[%emt 0:00:00]} e5 {[%emt 0:00:55]} 2. Nf3 {[%emt 0:00:00]} Nc6 {[%emt 0:00:04]} 3. Bb5 {[%emt 0:00:36]} a6 {[%emt 0:00:12]} 4. Bxc6 {[%emt 0:01:09]} bxc6 {[%emt 0:00:54]} 5. O-O {[%emt 0:00:16]} d6 {[%emt 0:01:33]} 6. d4 {[%emt 0:00:45]} Bg4 {[%emt 0:04:53]} 7. h3 {[%emt 0:01:03]} Bxf3 {[%emt 0:02:21]} 8. Qxf3 {[%emt 0:00:48]} Nf6 {[%emt 0:02:12]} 9. Qc3 {[%emt 0:01:55]} Qd7 {[%emt 0:03:56]} 10. Re1 {[%emt 0:00:58]} exd4 {[%emt 0:10:52]} 11. Qxd4 {[%emt 0:00:09]} Be7 {[%emt 0:01:52]} 12. e5 {[%emt 0:00:53]} dxe5 {[%emt 0:04:07]} 13. Qxe5 {[%emt 0:00:06]} Kf8 {[%emt 0:04:03]} 14. Nc3 {[%emt 0:02:05]} h5 {[%emt 0:04:28]} 15. Bg5 {[%emt 0:00:46]} Bd6 {[%emt 0:04:38]} 16. Qa5 {[%emt 0:01:08]} h4 {[%emt 0:02:02]} 17. Bxf6 {[%emt 0:00:49]} gxf6 {[%emt 0:00:44]} 18. Rad1 {[%emt 0:02:23]} Rg8 {[%emt 0:02:22]} 19. Qh5 {[%emt 0:01:41]} Rb8 {[%emt 0:03:25]} 20. Ne4 {[%emt 0:01:13]} Rg6 {[%emt 0:03:56]} 21. Qh8+ {[%emt 0:00:29]} Rg8 {[%emt 0:00:13]} 22. Qxg8+ {[%emt 0:00:09]} 1-0

[Event "AUT-ch 2018"]
[Site "Vienna"]
[Date "2018.07.25"]
[Round "5"]
[White "Schloffer, Jasmin-Denise"]
[Black "Gelbenegger, Patrick"]
[Result "1-0"]
[ECO "E33"]
[WhiteElo "2102"]
[BlackElo "2260"]
[Annotator "NA"]
[PlyCount "95"]
[EventDate "2018.07.22"]
[EventType "swiss"]
[EventCountry "AUT"]
[SourceTitle "playchess.com"]
[Source "ChessBase"]
[SourceQuality "1"]
[TimeControl "40/5400+30:1800+30"]

1. d4 {[%emt 0:00:00]} Nf6 {[%emt 0:00:00]} 2. c4 {[%emt 0:00:00]} e6 {[%emt 0:00:00]} 3. Nc3 {[%emt 0:00:00]} Bb4 {[%emt 0:00:00]} 4. Qc2 {[%emt 0:00:00]} Nc6 {[%emt 0:00:10]} 5. Nf3 {[%emt 0:00:01]} d6 {[%emt 0:00:18]} 6. Bd2 {[%emt 0:00:18]} Qe7 {[%emt 0:02:39]} 7. a3 {[%emt 0:03:19]} Bxc3 {[%emt 0:00:23]} 8. Bxc3 {[%emt 0:00:05]} e5 {[%emt 0:01:36]} 9. e3 {[%emt 0:03:22]} Bg4 {[%emt 0:15:09]} 10. d5 {[%emt 0:08:51]} Nb8 {[%emt 0:02:35]} 11. Be2 {[%emt 0:05:03]} Nbd7 {[%emt 0:08:34]} 12. Ng1 {[%emt 0:13:02]} O-O {[%emt 0:07:37]} 13. h3 {[%emt 0:03:34]} Bxe2 {[%emt 0:05:04]} 14. Nxe2 {[%emt 0:00:09]} Ne8 {[%emt 0:01:54]} 15. Ng3 {[%emt 0:03:37]} Qg5 {[%emt 0:08:19]} 16. e4 {[%emt 0:11:52]} Nef6 {[%emt 0:12:50]} 17. Bd2 {[%emt 0:04:09]} Qh4 {[%emt 0:02:44]} 18. O-O {[%emt 0:02:26]} Nh5 {[%emt 0:04:11]} 19. Nf5 {[%emt 0:02:51]} Qf6 {[%emt 0:02:39]} 20. g3 {[%emt 0:04:43]} Qd8 {[%emt 0:04:58]} 21. Kh2 {[%emt 0:02:27]} Nhf6 {[%emt 0:01:26]} 22. b4 {[%emt 0:05:21]} Re8 {[%emt 0:03:04]} 23. Qd3 {[%emt 0:02:38]} Nf8 {[%emt 0:01:22]} 24. Rg1 {[%emt 0:01:51]} Ng6 {[%emt 0:01:44]} 25. Qf3 {[%emt 0:00:56]} Nd7 {[%emt 0:02:18]} 26. h4 {[%emt 0:01:14]} Ne7 {[%emt 0:02:20]} 27. Ne3 {[%emt 0:01:49]} Rf8 {[%emt 0:00:59]} 28. h5 {[%emt 0:02:54]} Kh8 {[%emt 0:03:43]} 29. g4 {[%emt 0:03:17]} Ng8 {[%emt 0:01:05]} 30. g5 {[%emt 0:04:31]} a5 {[%emt 0:02:44]} 31. b5 {[%emt 0:05:05]} Nc5 {[%emt 0:00:21]} 32. Nf5 {[%emt 0:00:25]} b6 {[%emt 0:02:22]} 33. Rae1 {[%emt 0:01:22]} Qd7 {[%emt 0:00:42]} 34. Rg2 {[%emt 0:01:38]} a4 {[%emt 0:00:19]} 35. Reg1 {[%emt 0:02:18]} Nb3 {[%emt 0:00:20]} 36. Be3 {[%emt 0:00:05]} Na5 {[%emt 0:00:47]} 37. g6 {[%emt 0:01:06]} fxg6 {[%emt 0:00:31]} 38. hxg6 {[%emt 0:00:06]} h6 {[%emt 0:00:14]} 39. Qh5 {[%emt 0:00:37]} Rxf5 {[%emt 0:00:55]} 40. exf5 {[%emt 0:00:14]} Nf6 {[%emt 0:00:21]} 41. Qh3 {[%emt 0:30:57]} Kg8 {[%emt 0:19:24]} 42. Rc1 {[%emt 0:00:00]} Rf8 {[%emt 0:00:37]} 43. Bxh6 {[%emt 0:00:00]} gxh6 {[%emt 0:00:23]} 44. g7 {[%emt 0:00:00]} Rf7 {[%emt 0:00:38]} 45. Qxh6 {[%emt 0:00:00]} Nh7 {[%emt 0:00:24]} 46. Qxh7+ {[%emt 0:00:00]} Kxh7 {[%emt 0:00:09]} 47. g8=Q+ {[%emt 0:00:00]} Kh6 {[%emt 0:00:06]} 48. Qg6# {[%emt 0:00:00]} 1-0

[Event "AUT-ch 2018"]
[Site "Vienna"]
[Date "2018.07.25"]
[Round "5"]
[White "Ehs, Dominik"]
[Black "Goessler, Markus"]
[Result "0-1"]
[ECO "C50"]
[WhiteElo "2097"]
[BlackElo "2190"]
[Annotator "NA"]
[PlyCount "68"]
[EventDate "2018.07.22"]
[EventType "swiss"]
[EventCountry "AUT"]
[SourceTitle "playchess.com"]
[Source "ChessBase"]
[SourceQuality "1"]
[TimeControl "40/5400+30:1800+30"]

1. e4 {[%emt 0:00:00]} e5 {[%emt 0:00:00]} 2. Nf3 {[%emt 0:00:00]} Nc6 {[%emt 0:00:00]} 3. Bc4 {[%emt 0:00:00]} Bc5 {[%emt 0:00:00]} 4. O-O {[%emt 0:00:00]} Nf6 {[%emt 0:00:19]} 5. d3 {[%emt 0:00:06]} d6 {[%emt 0:00:36]} 6. c3 {[%emt 0:00:13]} h6 {[%emt 0:01:10]} 7. h3 {[%emt 0:00:13]} O-O {[%emt 0:00:13]} 8. Bb3 {[%emt 0:00:17]} a6 {[%emt 0:02:42]} 9. Re1 {[%emt 0:00:51]} Ba7 {[%emt 0:00:11]} 10. Nbd2 {[%emt 0:00:27]} Ne7 {[%emt 0:00:38]} 11. Nf1 {[%emt 0:01:10]} Ng6 {[%emt 0:00:53]} 12. a4 {[%emt 0:03:04]} c6 {[%emt 0:02:03]} 13. Bc2 {[%emt 0:05:31]} Nh7 {[%emt 0:14:35]} 14. Ng3 {[%emt 0:13:18]} Ng5 {[%emt 0:12:22]} 15. Be3 {[%emt 0:26:13]} Bxe3 {[%emt 0:05:51]} 16. Rxe3 {[%emt 0:01:22]} Nf4 {[%emt 0:02:30]} 17. Nf5 {[%emt 0:06:38]} Qf6 {[%emt 0:17:27]} 18. d4 {[%emt 0:04:13]} Nxe4 {[%emt 0:09:30]} 19. Bxe4 {[%emt 0:07:54]} Bxf5 {[%emt 0:00:10]} 20. Bxf5 {[%emt 0:03:48]} Qxf5 {[%emt 0:00:02]} 21. dxe5 {[%emt 0:03:33]} Qg6 {[%emt 0:08:19]} 22. Nh4 {[%emt 0:06:42]} Qg5 {[%emt 0:00:15]} 23. Qg4 {[%emt 0:00:14]} dxe5 {[%emt 0:01:20]} 24. Qxg5 hxg5 {[%emt 0:00:01]} 25. Nf5 {[%emt 0:06:47]} f6 {[%emt 0:01:34]} 26. c4 {[%emt 0:03:56]} Rfd8 {[%emt 0:03:38]} 27. Raa3 {[%emt 0:04:45]} Rd1+ {[%emt 0:07:24]} 28. Kh2 {[%emt 0:00:06]} Rad8 {[%emt 0:00:06]} 29. Rab3 {[%emt 0:00:38]} R8d7 {[%emt 0:00:20]} 30. Rec3 {[%emt 0:02:16]} R1d2 {[%emt 0:01:01]} 31. c5 {[%emt 0:00:33]} Rxf2 {[%emt 0:06:57]} 32. Rg3 {[%emt 0:00:05]} Ne6 {[%emt 0:00:28]} 33. Rgd3 {[%emt 0:00:52]} Rxd3 {[%emt 0:00:39]} 34. Rxd3 {[%emt 0:00:13]} Rxf5 {[%emt 0:00:15]} 0-1